fUSD/lending_fUSD_20250530
["ID","MTS","AMOUNT","RATE_DAILY","PERIOD"]
[363186531,1748619056188,-420.0,0.00022191,2]
[363186532,1748619056198,-420.0,0.00022191,2]
[363186533,1748619056208,-420.0,0.00022191,2]
[363186534,1748619056218,-420.0,0.00022191,2]
[363186535,1748619056229,-420.0,0.00022191,2]
[363186536,1748619056240,-500.0,0.00022191,2]
[363186537,1748619056250,-420.0,0.00022191,2]
[363186538,1748619056261,-2098.6,0.00022191,2]
[363186539,1748619056271,-420.0,0.00022191,2]
[363186540,1748619056281,-522.80797132,0.00022191,2]
[363186541,1748619056291,-220.84614271,0.00022191,2]
[363186542,1748619056301,-420.0,0.00022191,2]
[363186543,1748619056311,-490.07,0.00022191,2]
[363186544,1748619056321,-420.0,0.00022191,2]
[363186545,1748619056330,-420.0,0.00022191,2]
[363186546,1748619056340,-770.69,0.00022191,2]
[363186547,1748619056351,-420.0,0.00022191,2]
[363186548,1748619056361,-300.0,0.00022191,2]
[363186549,1748619056371,-360.09541962,0.00022191,2]
[363186550,1748619056381,-420.0,0.00022191,2]
[363186551,1748619056391,-166.44,0.00022191,2]
[363186552,1748619056401,-343.18657128,0.00022191,2]
[363186553,1748619056411,-890.15,0.00022191,2]
[363186554,1748619056422,-420.0,0.00022191,2]
[363186555,1748619056431,-420.0,0.00022191,2]
[363186556,1748619056442,-420.0,0.00022191,2]
[363186557,1748619056452,-256.47248873,0.00022191,2]
[363186558,1748619056461,-420.0,0.00022191,2]
[363186559,1748619056471,-420.0,0.00022191,2]
[363186560,1748619056482,-420.86,0.00022191,2]
[363186561,1748619056493,-426.87,0.00022191,2]
[363186562,1748619056503,-420.0,0.00022191,2]
[363186563,1748619056514,-518.15283122,0.00022191,2]
[363186564,1748619056523,-348.52955427,0.00022191,2]
[363186565,1748619056534,-500.0,0.00022191,2]
[363186566,1748619056544,-420.0,0.00022191,2]
[363186567,1748619056555,-420.0,0.00022191,2]
[363186568,1748619056749,-420.0,0.00022191,2]
[363186569,1748619056778,-424.91,0.00022191,2]
[363186570,1748619056790,-420.0,0.00022191,2]
[363186571,1748619056800,-420.0,0.00022191,2]
[363186572,1748619056810,-171.47896983,0.00022191,2]
[363186573,1748619056819,-429.06,0.00022191,2]
[363186574,1748619056830,-420.0,0.00022191,2]
[363186575,1748619056840,-420.0,0.00022191,2]
[363186576,1748619056849,-420.0,0.00022191,2]
[363186577,1748619056860,-758.53,0.00022191,2]
[363186578,1748619056869,-420.0,0.00022191,2]
[363186579,1748619056879,-420.0,0.00022191,2]
[363186580,1748619056888,-420.0,0.00022191,2]
[363186581,1748619056898,-420.0,0.00022191,2]
[363186582,1748619056907,-420.0,0.00022191,2]
[363186583,1748619056917,-772.94,0.00022191,2]
[363186584,1748619056927,-420.0,0.00022191,2]
[363186585,1748619056936,-420.0,0.00022191,2]
[363186586,1748619056946,-420.0,0.00022191,2]
[363186587,1748619056956,-420.0,0.00022191,2]
[363186588,1748619056966,-420.0,0.00022191,2]
[363186589,1748619056976,-427.85,0.00022191,2]
[363186590,1748619056988,-420.0,0.00022191,2]
[363186591,1748619056998,-420.0,0.00022191,2]
[363186592,1748619057008,-420.0,0.00022191,2]
[363186593,1748619057018,-420.0,0.00022191,2]
[363186594,1748619057028,-456.87,0.00022191,2]
[363186595,1748619057037,-541.62,0.00022191,2]
[363186596,1748619057046,-420.0,0.00022191,2]
[363186597,1748619057055,-420.0,0.00022191,2]
[363186598,1748619057065,-420.0,0.00022191,2]
[363186599,1748619057074,-420.0,0.00022191,2]
[363186600,1748619057084,-420.0,0.00022191,2]
[363186601,1748619057093,-420.0,0.00022191,2]
[363186602,1748619057102,-420.0,0.00022191,2]
[363186603,1748619057111,-420.0,0.00022191,2]
[363186604,1748619057120,-420.0,0.00022191,2]
[363186605,1748619057129,-420.0,0.00022191,2]
[363186606,1748619057139,-420.0,0.00022191,2]
[363186607,1748619057148,-420.0,0.00022191,2]
[363186608,1748619057158,-420.0,0.00022191,2]
[363186609,1748619057167,-420.0,0.00022191,2]
[363186610,1748619057178,-420.0,0.00022191,2]
[363186611,1748619057188,-420.0,0.00022191,2]
[363186612,1748619057199,-420.0,0.00022191,2]
[363186613,1748619057209,-271.72721888,0.00022191,2]
[363186614,1748619057218,-420.0,0.00022191,2]
[363186615,1748619057227,-420.0,0.00022191,2]
[363186616,1748619057238,-420.0,0.00022191,2]
[363186617,1748619057247,-324.46179133,0.00022191,2]
[363186618,1748619057257,-777.89,0.00022191,2]
[363186619,1748619057266,-420.0,0.00022191,2]
[363186620,1748619057275,-1819.65,0.00022191,2]
[363186621,1748619057284,-863.65,0.00022191,2]
[363186622,1748619057293,-420.0,0.00022191,2]
[363186623,1748619057302,-420.0,0.00022191,2]
[363186624,1748619057312,-420.0,0.00022191,2]
[363186625,1748619057322,-420.0,0.00022191,2]
[363186626,1748619057332,-500.0,0.00022191,2]
[363186627,1748619057342,-1212.65,0.00022191,2]
[363186628,1748619057351,-420.0,0.00022191,2]
[363186629,1748619057360,-420.0,0.00022191,2]
[363186630,1748619057370,-420.0,0.00022191,2]
[363186631,1748619057379,-1175.81,0.00022191,2]
[363186632,1748619057388,-420.0,0.00022191,2]
[363186633,1748619057398,-553.05,0.00022191,2]
[363186634,1748619057411,-420.0,0.00022191,2]
[363186635,1748619057420,-796.08,0.00022191,2]
[363186636,1748619057430,-420.0,0.00022191,2]
[363186637,1748619057439,-420.0,0.00022191,2]
[363186638,1748619057450,-420.0,0.00022191,2]
[363186639,1748619057459,-523.03,0.00022191,2]
[363186640,1748619057469,-501.69,0.00022191,2]
[363186641,1748619057479,-420.0,0.00022191,2]
[363186642,1748619057488,-420.0,0.00022191,2]
[363186643,1748619057498,-1811.35,0.00022191,2]
[363186644,1748619057507,-420.0,0.00022191,2]
[363186645,1748619057517,-509.62833657,0.00022191,2]
[363186646,1748619057527,-236.77329193,0.00022191,2]
[363186647,1748619057536,-420.0,0.00022191,2]
[363186648,1748619057546,-420.0,0.00022191,2]
[363186649,1748619057556,-822.17,0.00022191,2]
[363186650,1748619057566,-420.0,0.00022191,2]
[363186651,1748619057575,-496.62,0.00022191,2]
[363186652,1748619057585,-420.0,0.00022191,2]
[363186653,1748619057595,-641.0,0.00022191,2]
[363186654,1748619057606,-847.29,0.00022191,2]
[363186655,1748619057615,-420.0,0.00022191,2]
[363186656,1748619057625,-420.0,0.00022191,2]
[363186657,1748619057635,-1102.55,0.00022191,2]
[363186658,1748619057644,-420.0,0.00022191,2]
[363186659,1748619057654,-420.0,0.00022191,2]
[363186660,1748619057663,-443.43,0.00022191,2]
[363186661,1748619057673,-420.0,0.00022191,2]
[363186662,1748619057683,-569.47845177,0.00022191,2]
[363186663,1748619057692,-420.0,0.00022191,2]
[363186664,1748619057702,-443.13,0.00022191,2]
[363186665,1748619057711,-420.0,0.00022191,2]
[363186666,1748619057720,-420.0,0.00022191,2]
[363186667,1748619057730,-751.91,0.00022191,2]
[363186668,1748619057739,-420.0,0.00022191,2]
[363186669,1748619057749,-460.79504359,0.00022191,2]
[363186670,1748619057758,-160.0,0.00022191,2]
[363186671,1748619057767,-420.0,0.00022191,2]
[363186672,1748619057777,-420.0,0.00022191,2]
[363186673,1748619057791,-425.35899265,0.00022191,2]
[363186674,1748619057800,-420.0,0.00022191,2]
[363186675,1748619057810,-420.0,0.00022191,2]
[363186676,1748619057819,-518.42,0.00022191,2]
[363186677,1748619057828,-420.0,0.00022191,2]
[363186678,1748619057838,-420.0,0.00022191,2]
[363186679,1748619057847,-486.66,0.00022191,2]
[363186680,1748619057857,-1199.0,0.00022191,2]
[363186681,1748619057867,-206.55841864,0.00022191,2]
[363186682,1748619057876,-420.0,0.00022191,2]
[363186683,1748619057886,-841.83,0.00022191,2]
[363186684,1748619057895,-1711.43,0.00022191,2]
[363186685,1748619057904,-425.36307424,0.00022191,2]
[363186686,1748619057914,-508.53,0.00022191,2]
[363186687,1748619057925,-420.0,0.00022191,2]
[363186688,1748619057934,-948.67,0.00022191,2]
[363186689,1748619057944,-420.0,0.00022191,2]
[363186690,1748619057953,-610.77,0.00022191,2]
[363186691,1748619057963,-420.0,0.00022191,2]
[363186692,1748619057973,-423.52,0.00022191,2]
[363186693,1748619057982,-2171.03,0.00022191,2]
[363186694,1748619057992,-420.0,0.00022191,2]
[363186695,1748619058002,-168.192605,0.00022191,7]
[363186696,1748619058011,-420.0,0.00022191,2]
[363186697,1748619058020,-945.97,0.00022191,2]
[363186698,1748619058030,-572.48,0.00022191,2]
[363186699,1748619058039,-500.0,0.00022191,2]
[363186700,1748619058048,-420.0,0.00022191,2]
[363186701,1748619058057,-420.0,0.00022191,2]
[363186702,1748619058067,-1319.71,0.00022191,2]
[363186703,1748619058074,-500.0,0.00022191,2]
[363186704,1748619058082,-151.0,0.00022191,7]
[363186705,1748619058090,-420.0,0.00022191,2]
[363186706,1748619058098,-456.76,0.00022191,2]
[363186707,1748619058106,-1456.24,0.00022191,2]
[363186708,1748619058114,-420.0,0.00022191,2]
[363186709,1748619058121,-636.09,0.00022191,2]
[363186710,1748619058129,-332.5612883,0.00022191,2]
[363186711,1748619058137,-151.0,0.00022191,7]
[363186712,1748619058146,-420.0,0.00022191,2]
[363186713,1748619058154,-388.97871371,0.00022191,2]
[363186714,1748619058163,-743.92,0.00022191,2]
[363186715,1748619058171,-853.5,0.00022191,2]
[363186716,1748619058180,-160.0,0.00022191,2]
[363186717,1748619058188,-151.0,0.00022191,7]
[363186718,1748619058197,-1014.55116906,0.00022191,2]
[363186719,1748619058206,-426.83486572,0.00022191,2]
[363186720,1748619058215,-427.32497832,0.00022191,2]
[363186721,1748619058224,-420.0,0.00022191,2]
[363186722,1748619058235,-151.0,0.00022191,7]
[363186723,1748619058244,-420.0,0.00022191,2]
[363186724,1748619058254,-1258.56,0.00022191,2]
[363186725,1748619058263,-420.0,0.00022191,2]
[363186726,1748619058273,-652.14,0.00022191,2]
[363186727,1748619058282,-569.93,0.00022191,2]
[363186728,1748619058291,-1419.49,0.00022191,2]
[363186729,1748619058300,-420.0,0.00022191,2]
[363186730,1748619058310,-584.74,0.00022191,2]
[363186731,1748619058319,-755.51,0.00022191,2]
[363186732,1748619058329,-582.04,0.00022191,2]
[363186733,1748619058338,-376.39091839,0.00022191,2]
[363186734,1748619058347,-420.0,0.00022191,2]
[363186735,1748619058356,-420.0,0.00022191,2]
[363186736,1748619058366,-420.0,0.00022191,2]
[363186737,1748619058375,-420.0,0.00022191,2]
[363186738,1748619058384,-781.6,0.00022191,2]
[363186739,1748619058393,-151.0,0.00022191,7]
[363186740,1748619058402,-151.0,0.00022191,7]
[363186741,1748619058411,-1041.01,0.00022191,2]
[363186742,1748619058421,-1369.52,0.00022191,2]
[363186743,1748619058430,-474.65,0.00022191,2]
[363186744,1748619058440,-420.0,0.00022191,2]
[363186745,1748619058450,-463.6,0.00022191,2]
[363186746,1748619058459,-151.0,0.00022191,7]
[363186747,1748619058469,-420.0,0.00022191,2]
[363186748,1748619058478,-1379.11,0.00022191,2]
[363186749,1748619058489,-420.0,0.00022191,2]
[363186750,1748619058499,-420.0,0.00022191,2]
[363186751,1748619058508,-666.7,0.00022191,2]
[363186752,1748619058518,-151.0,0.00022191,7]
[363186753,1748619058527,-151.0,0.00022191,7]
[363186754,1748619058538,-420.0,0.00022191,2]
[363186755,1748619058547,-741.8,0.00022191,2]
[363186756,1748619058556,-205.42636287,0.00022191,2]
[363186757,1748619058566,-1319.43,0.00022191,2]
[363186758,1748619058575,-177.18003927,0.00022191,2]
[363186759,1748619058585,-576.82,0.00022191,2]
[363186760,1748619058594,-693.89,0.00022191,2]
[363186761,1748619058604,-430.30396862,0.00022191,2]
[363186762,1748619058613,-561.65,0.00022191,2]
[363186763,1748619058623,-420.0,0.00022191,2]
[363186764,1748619058632,-151.0,0.00022191,7]
[363186765,1748619058641,-151.0,0.00022191,7]
[363186766,1748619058650,-1160.92,0.00022191,2]
[363186767,1748619058659,-544.82854578,0.00022191,2]
[363186768,1748619058669,-420.0,0.00022191,2]
[363186769,1748619058678,-1207.82,0.00022191,2]
[363186770,1748619058687,-420.0,0.00022191,2]
[363186771,1748619058696,-472.93,0.00022191,2]
[363186772,1748619058706,-1168.26,0.00022191,2]
[363186773,1748619058716,-1166.17,0.00022191,2]
[363186774,1748619058725,-516.04,0.00022191,2]
[363186775,1748619058735,-160.0,0.00022191,2]
[363186776,1748619058744,-151.0,0.00022191,7]
[363186777,1748619058754,-481.832275,0.00022191,2]
[363186778,1748619058763,-420.0,0.00022191,2]
[363186779,1748619058772,-466.98,0.00022191,2]
[363186780,1748619058783,-784.43,0.00022191,2]
[363186781,1748619058794,-723.56,0.00022191,2]
[363186782,1748619058803,-1364.89,0.00022191,2]
[363186783,1748619058812,-587.51,0.00022191,2]
[363186784,1748619058822,-420.0,0.00022191,2]
[363186785,1748619058832,-801.75,0.00022191,2]
[363186786,1748619058841,-862.94,0.00022191,2]
[363186787,1748619058850,-604.61,0.00022191,2]
[363186788,1748619058860,-635.16,0.00022191,2]
[363186789,1748619058871,-1137.25,0.00022191,2]
[363186790,1748619058883,-420.0,0.00022191,2]
[363186791,1748619058894,-786.55,0.00022191,2]
[363186792,1748619058905,-420.0,0.00022191,2]
[363186793,1748619058916,-425.80975803,0.00022191,2]
[363186794,1748619058927,-420.0,0.00022191,2]
[363186795,1748619058937,-1160.03,0.00022191,2]
[363186796,1748619058948,-523.95,0.00022191,2]
[363186797,1748619058958,-673.65,0.00022191,2]
[363186798,1748619058968,-931.25,0.00022191,2]
[363186799,1748619058977,-420.0,0.00022191,2]
[363186800,1748619058989,-420.0,0.00022191,2]
[363186801,1748619058998,-552.42,0.00022191,2]
[363186802,1748619059008,-420.0,0.00022191,2]
[363186803,1748619059018,-459.7,0.00022191,2]
[363186804,1748619059028,-1724.07,0.00022191,2]
[363186805,1748619059037,-420.0,0.00022191,2]
[363186806,1748619059046,-151.0,0.00022191,7]
[363186807,1748619059057,-600.48,0.00022191,2]
[363186808,1748619059067,-658.621131,0.00022191,7]
[363186809,1748619059076,-726.29,0.00022191,2]
[363186810,1748619059085,-420.0,0.00022191,2]
[363186811,1748619059094,-472.86,0.00022191,2]
[363186812,1748619059103,-1073.36,0.00022191,2]
[363186813,1748619059112,-658.621131,0.00022191,7]
[363186814,1748619059121,-420.0,0.00022191,2]
[363186815,1748619059131,-832.22,0.00022191,2]
[363186816,1748619059142,-151.0,0.00022191,7]
[363186817,1748619059152,-576.09,0.00022191,2]
[363186818,1748619059162,-1371.43,0.00022191,2]
[363186819,1748619059171,-420.0,0.00022191,2]
[363186820,1748619059181,-170.94847076,0.00022191,2]
[363186821,1748619059191,-1079.44,0.00022191,2]
[363186822,1748619059200,-538.33,0.00022191,2]
[363186823,1748619059210,-420.0,0.00022191,2]
[363186824,1748619059219,-420.0,0.00022191,2]
[363186825,1748619059228,-971.8,0.00022191,2]
[363186826,1748619059239,-590.55,0.00022191,2]
[363186827,1748619059248,-550.23,0.00022191,2]
[363186828,1748619059257,-476.32,0.00022191,2]
[363186829,1748619059267,-420.0,0.00022191,2]
[363186830,1748619059276,-420.0,0.00022191,2]
[363186831,1748619059286,-523.75,0.00022191,2]
[363186832,1748619059295,-420.0,0.00022191,2]
[363186833,1748619059305,-420.0,0.00022191,2]
[363186834,1748619059314,-367.54817576,0.00022191,2]
[363186835,1748619059323,-2381.24,0.00022191,2]
[363186836,1748619059333,-151.0,0.00022191,7]
[363186837,1748619059343,-420.0,0.00022191,2]
[363186838,1748619059352,-420.0,0.00022191,2]
[363186839,1748619059361,-1073.24,0.00022191,2]
[363186840,1748619059371,-420.0,0.00022191,2]
[363186841,1748619059381,-659.08,0.00022191,2]
[363186842,1748619059391,-420.0,0.00022191,2]
[363186843,1748619059401,-535.46,0.00022191,2]
[363186844,1748619059410,-420.0,0.00022191,2]
[363186845,1748619059420,-420.0,0.00022191,2]
[363186846,1748619059429,-151.0,0.00022191,7]
[363186847,1748619059440,-569.05,0.00022191,2]
[363186848,1748619059450,-420.0,0.00022191,2]
[363186849,1748619059460,-151.0,0.00022191,7]
[363186850,1748619059471,-808.94,0.00022191,2]
[363186851,1748619059481,-1940.81,0.00022191,2]
[363186852,1748619059491,-420.0,0.00022191,2]
[363186853,1748619059500,-420.0,0.00022191,2]
[363186854,1748619059510,-420.0,0.00022191,2]
[363186855,1748619059520,-420.0,0.00022191,2]
[363186856,1748619059530,-463.09,0.00022191,2]
[363186857,1748619059539,-627.54,0.00022191,2]
[363186858,1748619059548,-420.0,0.00022191,2]
[363186859,1748619059558,-1123.75,0.00022191,2]
[363186860,1748619059567,-420.0,0.00022191,2]
[363186861,1748619059577,-539.2,0.00022191,2]
[363186862,1748619059587,-487.89,0.00022191,2]
[363186863,1748619059596,-420.0,0.00022191,2]
[363186864,1748619059606,-420.0,0.00022191,2]
[363186865,1748619059615,-1448.39,0.00022191,2]
[363186866,1748619059625,-1124.04,0.00022191,2]
[363186867,1748619059634,-1287.465475,0.00022191,7]
[363186868,1748619059644,-553.55,0.00022191,2]
[363186869,1748619059654,-1287.465475,0.00022191,7]
[363186870,1748619059664,-151.0,0.00022191,7]
[363186871,1748619059674,-420.0,0.00022191,2]
[363186872,1748619059683,-1053.3,0.00022191,2]
[363186873,1748619059693,-584.13,0.00022191,2]
[363186874,1748619059703,-420.0,0.00022191,2]
[363186875,1748619059713,-1192.82,0.00022191,2]
[363186876,1748619059722,-613.48,0.00022191,2]
[363186877,1748619059733,-420.0,0.00022191,2]
[363186878,1748619059743,-420.0,0.00022191,2]
[363186879,1748619059753,-495.16541345,0.00022191,2]
[363186880,1748619059762,-151.0,0.00022191,7]
[363186881,1748619059772,-420.0,0.00022191,2]
[363186882,1748619059782,-420.0,0.00022191,2]
[363186883,1748619059795,-491.19,0.00022191,2]
[363186884,1748619059805,-466.46,0.00022191,2]
[363186885,1748619059814,-561.99,0.00022191,2]
[363186886,1748619059823,-420.0,0.00022191,2]
[363186887,1748619059834,-204.73550305,0.00022191,2]
[363186888,1748619059844,-1678.06,0.00022191,2]
[363186889,1748619059853,-420.0,0.00022191,2]
[363186890,1748619059863,-420.0,0.00022191,2]
[363186891,1748619059873,-420.0,0.00022191,2]
[363186892,1748619059883,-420.0,0.00022191,2]
[363186893,1748619059892,-1400.08,0.00022191,2]
[363186894,1748619059902,-600.46,0.00022191,2]
[363186895,1748619059913,-626.74,0.00022191,2]
[363186896,1748619059924,-151.206555,0.00022191,7]
[363186897,1748619059934,-729.19,0.00022191,2]
[363186898,1748619059944,-420.0,0.00022191,2]
[363186899,1748619059954,-849.19,0.00022191,2]
[363186900,1748619059964,-1178.79,0.00022191,2]
[363186901,1748619060161,-420.0,0.00022191,2]
[363186902,1748619060171,-420.0,0.00022191,2]
[363186903,1748619060181,-425.41094628,0.00022191,2]
[363186904,1748619060190,-1833.03,0.00022191,2]
[363186905,1748619060200,-420.0,0.00022191,2]
[363186906,1748619060209,-569.47845177,0.00022191,2]
[363186907,1748619060219,-558.24,0.00022191,2]
[363186908,1748619060229,-633.87,0.00022191,2]
[363186909,1748619060240,-420.0,0.00022191,2]
[363186910,1748619060250,-420.0,0.00022191,2]
[363186911,1748619060260,-465.46,0.00022191,2]
[363186912,1748619060269,-180.808035,0.00022191,7]
[363186913,1748619060279,-420.0,0.00022191,2]
[363186914,1748619060289,-1085.24,0.00022191,2]
[363186915,1748619060298,-3634.58,0.00022191,2]
[363186916,1748619060308,-2016.38,0.00022191,2]
[363186917,1748619060317,-420.0,0.00022191,2]
[363186918,1748619060327,-420.0,0.00022191,2]
[363186919,1748619060336,-420.0,0.00022191,2]
[363186920,1748619060345,-609.8,0.00022191,2]
[363186921,1748619060355,-420.0,0.00022191,2]
[363186922,1748619060364,-420.0,0.00022191,2]
[363186923,1748619060374,-420.0,0.00022191,2]
[363186924,1748619060383,-5361.86,0.00022191,2]
[363186925,1748619060393,-420.0,0.00022191,2]
[363186926,1748619060402,-1168.36,0.00022191,2]
[363186927,1748619060412,-421.44094514,0.00022191,2]
[363186928,1748619060421,-180.808035,0.00022191,7]
[363186929,1748619060430,-2127.16,0.00022191,2]
[363186930,1748619060440,-1484.06,0.00022191,2]
[363186931,1748619060450,-420.0,0.00022191,2]
[363186932,1748619060459,-439.62107707,0.00022191,2]
[363186933,1748619060469,-420.0,0.00022191,2]
[363186934,1748619060479,-1109.67,0.00022191,2]
[363186935,1748619060489,-575.02,0.00022191,2]
[363186936,1748619060500,-904.81,0.00022191,2]
[363186937,1748619060510,-614.8,0.00022191,2]
[363186938,1748619060520,-2741.562088,0.00022191,7]
[363186939,1748619060529,-562.44,0.00022191,2]
[363186940,1748619060539,-674.8,0.00022191,2]
[363186941,1748619060548,-420.0,0.00022191,2]
[363186942,1748619060558,-2741.562088,0.00022191,7]
[363186943,1748619060567,-420.0,0.00022191,2]
[363186944,1748619060577,-420.0,0.00022191,2]
[363186945,1748619060587,-1824.08,0.00022191,2]
[363186946,1748619060597,-420.0,0.00022191,2]
[363186947,1748619060607,-417.57033563,0.00022191,2]
[363186948,1748619060616,-151.0,0.00022191,7]
[363186949,1748619060625,-490.58,0.00022191,2]
[363186950,1748619060635,-493.08579206,0.00022191,2]
[363186951,1748619060645,-420.0,0.00022191,2]
[363186952,1748619060654,-7075.98,0.00022191,2]
[363186953,1748619060663,-151.0,0.00022191,7]
[363186954,1748619060673,-420.0,0.00022191,2]
[363186955,1748619060682,-420.0,0.00022191,2]
[363186956,1748619060692,-420.0,0.00022191,2]
[363186957,1748619060702,-1096.87,0.00022191,2]
[363186958,1748619060711,-723.21,0.00022191,2]
[363186959,1748619060720,-420.0,0.00022191,2]
[363186960,1748619060730,-420.0,0.00022191,2]
[363186961,1748619060741,-1561.66,0.00022191,2]
[363186962,1748619060751,-9812.16,0.00022191,2]
[363186963,1748619060760,-420.0,0.00022191,2]
[363186964,1748619060770,-426.02427588,0.00022191,2]
[363186965,1748619060779,-420.0,0.00022191,2]
[363186966,1748619060794,-1429.73,0.00022191,2]
[363186967,1748619060804,-1075.43,0.00022191,2]
[363186968,1748619060813,-622.82,0.00022191,2]
[363186969,1748619060823,-1946.94,0.00022191,2]
[363186970,1748619060833,-11863.32,0.00022191,2]
[363186971,1748619060842,-915.42,0.00022191,2]
[363186972,1748619060852,-797.36,0.00022191,2]
[363186973,1748619060861,-420.0,0.00022191,2]
[363186974,1748619060871,-594.91,0.00022191,2]
[363186975,1748619060880,-1167.97,0.00022191,2]
[363186976,1748619060889,-5682.0,0.00022191,2]
[363186977,1748619060899,-524.77,0.00022191,2]
[363186978,1748619060908,-420.0,0.00022191,2]
[363186979,1748619060917,-1550.77,0.00022191,2]
[363186980,1748619060926,-420.0,0.00022191,2]
[363186981,1748619060936,-420.0,0.00022191,2]
[363186982,1748619060945,-974.63,0.00022191,2]
[363186983,1748619060955,-655.87,0.00022191,2]
[363186984,1748619060964,-600.66,0.00022191,2]
[363186985,1748619060974,-702.81,0.00022191,2]
[363186986,1748619060984,-1024.75,0.00022191,2]
[363186987,1748619060994,-610.074716,0.00022191,7]
[363186988,1748619061004,-609.69,0.00022191,2]
[363186989,1748619061013,-1076.37,0.00022191,2]
[363186990,1748619061023,-420.0,0.00022191,2]
[363186991,1748619061032,-464.14,0.00022191,2]
[363186992,1748619061041,-420.0,0.00022191,2]
[363186993,1748619061050,-422.91357896,0.00022191,2]
[363186994,1748619061060,-610.074716,0.00022191,7]
[363186995,1748619061069,-420.0,0.00022191,2]
[363186996,1748619061078,-420.0,0.00022191,2]
[363186997,1748619061088,-420.0,0.00022191,2]
[363186998,1748619061098,-1708.68,0.00022191,2]
[363186999,1748619061107,-9498.11,0.00022191,2]
[363187000,1748619061116,-476.72,0.00022191,2]
[363187001,1748619061126,-420.0,0.00022191,2]
[363187002,1748619061135,-423.03340066,0.00022191,2]
[363187003,1748619061147,-420.0,0.00022191,2]
[363187004,1748619061157,-1013.34,0.00022191,2]
[363187005,1748619061166,-726.29,0.00022191,2]
[363187006,1748619061176,-182.952023,0.00022191,7]
[363187007,1748619061185,-1568.21,0.00022191,2]
[363187008,1748619061194,-997.73,0.00022191,2]
[363187009,1748619061204,-850.36,0.00022191,2]
[363187010,1748619061213,-829.87,0.00022191,2]
[363187011,1748619061222,-424.24598421,0.00022191,2]
[363187012,1748619061232,-420.0,0.00022191,2]
[363187013,1748619061247,-717.62,0.00022191,2]
[363187014,1748619061256,-862.79,0.00022191,2]
[363187015,1748619061265,-420.0,0.00022191,2]
[363187016,1748619061275,-2137.81,0.00022191,2]
[363187017,1748619061284,-657.91,0.00022191,2]
[363187018,1748619061294,-420.0,0.00022191,2]
[363187019,1748619061303,-985.32,0.00022191,2]
[363187020,1748619061312,-420.0,0.00022191,2]
[363187021,1748619061322,-420.0,0.00022191,2]
[363187022,1748619061331,-420.0,0.00022191,2]
[363187023,1748619061341,-420.0,0.00022191,2]
[363187024,1748619061351,-420.0,0.00022191,2]
[363187025,1748619061360,-541.52,0.00022191,2]
[363187026,1748619061369,-1399.41,0.00022191,2]
[363187027,1748619061379,-1150.73,0.00022191,2]
[363187028,1748619061388,-500.0,0.00022191,2]
[363187029,1748619061398,-420.0,0.00022191,2]
[363187030,1748619061408,-500.0,0.00022191,2]